bitfinex/quotes_ETHUSD_20260310
["timestamp","ask_amount","ask_price","bid_price","bid_amount"]
[1773149395760,0.49886792,2055.8,2055.3,0.47417045]
[1773149396383,0.49886792,2056.1,2055.3,0.52282514]
[1773149396678,0.49886792,2055.5,2055.1,0.0011]
[1773149396859,0.04865484,2055.4,2055.1,0.0011]
[1773149397061,0.04865484,2055.4,2055.3,0.0011]
[1773149397396,0.49886792,2055.9,2055.3,0.0011]
[1773149397757,0.49886792,2055.7,2055.3,0.0011]
[1773149399063,0.49886792,2055.6,2055.3,0.0011]
[1773149399263,0.49886792,2055.8,2055.3,0.47527045]
[1773149400185,0.49886792,2056.1,2055.3,0.47527045]
[1773149400486,0.002,2056.5,2055.7,0.47417045]
[1773149400690,0.002,2056.5,2056.0,0.47417045]
[1773149401102,2.37015939,2057.0,2056.0,0.47417045]
[1773149401103,0.002,2057.8,2056.4,2.66157397]
[1773149401295,0.002,2058.0,2057.3,0.47417045]
[1773149401584,0.35231637,2057.9,2057.3,0.47417045]
[1773149401753,0.002,2058.0,2057.7,0.47417045]
[1773149401956,0.002,2058.3,2058.0,0.47417045]
[1773149402176,0.004,2058.3,2057.1,0.47417045]
[1773149402399,0.004,2058.3,2057.3,0.47417045]
[1773149402603,1.21427236,2058.9,2057.8,0.47417045]
[1773149402775,4.85735788,2058.8,2057.8,0.47417045]
[1773149402976,1.21603803,2059.3,2058.3,2.66157397]
[1773149403188,3.58234826,2059.0,2058.1,0.47417045]
[1773149403366,4.08121618,2059.0,2057.8,1.68904863]
[1773149403568,0.49442279,2058.6,2057.5,0.46907404]
[1773149403868,2.86058218,2058.4,2057.5,0.46907404]
[1773149404071,0.49242279,2058.4,2057.5,0.46907404]
[1773149404470,0.49242279,2058.3,2057.0,0.46907404]
[1773149404669,0.49242279,2057.7,2056.7,0.46907404]
[1773149404904,0.49242279,2057.4,2056.4,4.34634764]
[1773149405103,1.21518495,2057.3,2056.4,4.34634764]
[1773149405416,0.49242279,2057.7,2056.5,0.46907404]
[1773149405596,0.49242279,2057.6,2056.5,0.46907404]
[1773149406308,4.42279157,2057.9,2056.6,0.46907404]
[1773149407069,4.42279157,2057.9,2056.8,0.46907404]
[1773149407274,1.70725573,2057.9,2056.8,0.46907404]
[1773149407710,1.70725573,2057.9,2056.9,0.46907404]
[1773149408014,1.70725573,2057.9,2056.6,1.68463433]
[1773149408015,0.49242279,2057.6,2056.6,1.68463433]
[1773149408693,0.49242279,2057.6,2056.4,4.10157397]
[1773149408897,0.49242279,2056.7,2055.7,0.46907404]
[1773149409084,0.49242279,2056.7,2055.4,1.21625474]
[1773149409085,0.49242279,2056.4,2055.4,1.21625474]
[1773149409476,1.21559856,2056.6,2055.5,0.517724]
[1773149409808,0.49242279,2056.4,2055.3,0.0011]
[1773149409984,2.36727871,2056.2,2055.3,0.0011]
[1773149410184,2.8597015,2055.6,2054.5,1.68587276]
[1773149410491,0.49242279,2055.5,2054.5,1.68587276]
[1773149411028,0.49242279,2055.5,2054.2,1.21701879]
[1773149411029,0.49242279,2055.1,2054.2,1.21701879]
[1773149411312,4.8657065,2055.5,2054.4,2.83635275]
[1773149411313,0.49242279,2055.5,2054.4,2.83635275]
[1773149411483,0.49242279,2055.8,2054.5,0.46907404]
[1773149411684,0.49242279,2056.0,2054.5,0.46907404]
[1773149411878,0.49242279,2056.0,2054.6,2.88502402]
[1773149412183,0.49242279,2055.5,2054.3,0.46907404]
[1773149412815,3.20795863,2055.9,2054.5,2.36727871]
[1773149413011,3.20795863,2055.9,2054.6,0.46907404]
[1773149413213,1.70849439,2055.8,2054.7,1.21672263]
[1773149413523,0.49242279,2055.6,2054.4,1.21685469]
[1773149413818,0.49242279,2055.3,2054.2,1.452]
[1773149414124,0.49242279,2055.6,2054.4,2.83635275]
[1773149414303,0.49242279,2055.6,2054.5,0.04867364]
[1773149414810,0.49242279,2055.6,2054.5,0.46907404]
[1773149415220,1.21624908,2055.5,2054.6,1.21678185]
[1773149415525,1.70867187,2055.5,2054.6,1.21678185]
[1773149415810,1.21616949,2055.7,2054.6,1.68585589]
[1773149416137,2.36727871,2055.5,2054.3,1.68600062]
[1773149416421,0.49242279,2055.2,2054.1,2.51291584]
[1773149416589,0.49242279,2055.2,2054.1,3.72998849]
[1773149417395,0.49242279,2055.0,2054.1,1.21707265]
[1773149417572,0.49242279,2055.0,2054.0,6.79657107]
[1773149417573,0.49242279,2055.0,2054.0,3.14515435]
[1773149418219,1.21648581,2055.1,2053.9,0.04868786]
[1773149418220,0.49242279,2054.7,2053.9,0.04868786]
[1773149418416,0.49242279,2054.7,2054.0,0.04868549]
[1773149418724,0.49242279,2055.0,2053.8,0.51776427]
[1773149418929,0.49242279,2055.0,2054.0,0.46907404]
[1773149419095,1.21634111,2055.4,2054.3,0.46907404]
[1773149419292,0.49242279,2055.4,2054.4,1.26553089]
[1773149419480,0.49242279,2055.2,2054.2,1.21701879]
[1773149420309,0.49242279,2055.2,2054.3,0.04867838]
[1773149421031,2.38344228,2055.1,2054.4,3.83227871]
[1773149421233,2.38344228,2055.1,2054.5,1.465]
[1773149421394,2.38344228,2055.1,2054.4,6.33346709]
[1773149421724,2.38344228,2055.1,2054.4,6.26787874]
[1773149422091,2.38344228,2055.1,2054.5,0.04867364]
[1773149422319,3.59993873,2055.1,2054.4,2.68390031]
[1773149422621,1.82803575,2055.0,2054.4,2.68390031]
[1773149422790,1.82803575,2055.0,2054.4,1.21690031]
[1773149423134,1.21731386,2055.4,2054.5,0.46907404]
[1773149423292,1.21642662,2055.2,2054.5,1.468]
[1773149423687,0.49242279,2055.3,2054.6,0.04867127]
[1773149423901,1.70880502,2055.3,2054.5,1.468]
[1773149424103,1.21638223,2055.3,2054.5,1.93707404]
[1773149424442,10.46150362,2055.9,2054.7,0.46907404]
[1773149424443,4.93860793,2055.9,2054.7,0.46907404]
[1773149424596,4.93860793,2055.9,2055.0,0.46907404]
[1773149424597,0.51463163,2055.9,2055.0,0.46907404]
[1773149424786,2.2230727,2055.9,2054.9,1.469]
[1773149425027,0.49242279,2055.8,2054.9,1.469]
[1773149425259,0.49242279,2055.8,2054.6,0.04867127]
[1773149425463,1.70855354,2055.7,2054.7,1.21672263]
[1773149425766,0.49242279,2055.6,2054.8,0.04866653]
[1773149426066,0.49242279,2055.6,2054.7,1.21672263]
[1773149426528,3.72259026,2055.9,2054.8,0.51774057]
[1773149426727,2.22310033,2055.9,2054.8,0.51774057]
[1773149427123,2.22308381,2055.9,2054.8,0.46907404]
[1773149427331,2.22308381,2055.9,2055.1,1.68555985]
[1773149427332,1.73065909,2055.9,2055.1,1.68555985]
[1773149427560,1.73065007,2055.9,2055.1,1.68555985]
[1773149427766,0.51463163,2055.9,2055.1,1.68555985]
[1773149428362,1.21588896,2056.2,2055.3,0.46907404]
[1773149428561,1.70831175,2056.2,2055.3,0.46907404]
[1773149429186,1.70811453,2056.5,2055.4,0.46907404]
[1773149429334,1.70811453,2056.5,2055.5,1.21624908]
[1773149429669,0.49242279,2056.4,2055.5,1.21624908]
[1773149429867,0.49242279,2056.1,2054.8,0.46907404]
[1773149430070,0.49242279,2055.8,2054.7,2.69066342]
[1773149430372,2.36727871,2055.9,2054.6,1.21673721]
[1773149430373,2.8597015,2055.6,2054.6,1.21673721]
[1773149431185,0.49242279,2055.6,2054.7,0.0486689]
[1773149431364,3.20795863,2055.9,2054.8,0.04866653]
[1773149431572,1.70846785,2055.9,2055.0,0.46907404]
[1773149431731,1.70846785,2055.9,2055.0,0.51773584]
[1773149431934,2.8597015,2055.4,2054.5,1.68590808]
[1773149432275,0.0486618,2055.3,2054.5,1.68590808]
[1773149432665,0.0486618,2055.3,2054.3,0.0011]
[1773149432863,0.54108459,2055.3,2054.3,1.21803246]
[1773149433083,2.8597015,2055.1,2054.3,0.0011]
[1773149433452,1.21654501,2055.0,2054.3,0.0011]
[1773149433651,1.6741865,2055.0,2054.3,0.04977838]
[1773149433855,1.6741865,2055.0,2054.3,0.0011]
[1773149434296,4.04146521,2055.0,2054.3,0.0011]
[1773149434592,1.6741865,2055.0,2054.3,0.0011]
[1773149435092,1.21654501,2055.0,2054.3,0.0011]
[1773149435296,0.0486618,2055.1,2054.3,0.46557923]
[1773149435609,0.001,2055.4,2054.5,1.68132031]
[1773149435748,0.0496618,2055.4,2054.5,1.68132031]
[1773149435952,0.0496618,2055.4,2054.6,0.5131505]
[1773149435953,0.001,2055.4,2054.6,0.5131505]
[1773149436149,0.001,2055.4,2054.8,0.46447923]
[1773149436407,0.45764149,2055.9,2054.9,0.04866416]
[1773149436550,0.0486618,2055.8,2054.9,0.51314339]
[1773149436755,0.0486618,2056.0,2055.0,0.46447923]
[1773149437057,0.0486618,2055.9,2055.1,0.46447923]
[1773149437285,0.0486618,2056.0,2055.1,0.46447923]
[1773149437486,1.26457211,2056.1,2055.2,1.21642662]
[1773149437798,0.50630329,2056.0,2055.1,2.69647126]
[1773149438100,1.21591031,2056.1,2055.2,0.46447923]
[1773149438256,0.0486618,2056.1,2055.2,0.46447923]
[1773149438596,1.21542126,2056.9,2055.9,2.36727871]
[1773149438799,1.26408306,2056.9,2055.9,1.94447923]
[1773149439093,0.0486618,2056.9,2056.0,0.46447923]
[1773149439407,0.50630329,2057.2,2056.0,0.46447923]
[1773149439692,1.67294458,2057.1,2056.1,1.21589416]
[1773149439895,0.45764149,2056.9,2055.6,1.68062594]
[1773149440102,2.8249202,2056.7,2055.6,1.68066678]
[1773149440254,0.0486618,2056.6,2055.6,1.68066678]
[1773149441379,0.0486618,2056.6,2055.2,3.16186949]
[1773149441380,2.36727871,2056.4,2055.2,3.16186949]
[1773149441693,0.50630329,2056.6,2055.3,0.46447923]
[1773149441694,0.0486618,2056.3,2055.3,0.46447923]
[1773149441897,0.0486618,2056.4,2055.3,0.46447923]
[1773149442593,0.0486618,2056.4,2055.4,1.482]
[1773149442594,0.50630329,2056.4,2055.4,1.482]
[1773149442794,0.50630329,2056.4,2055.3,0.04865469]
[1773149443497,2.36727871,2056.2,2055.2,1.21639026]
[1773149443796,1.26455596,2056.1,2055.2,1.21639026]
[1773149444167,1.26455596,2056.1,2054.9,0.46447923]
[1773149444375,0.45764149,2055.8,2054.5,1.482]
[1773149444605,0.50630329,2055.7,2054.4,1.68137954]
[1773149444757,2.36727871,2055.6,2054.4,1.68137954]
[1773149444960,0.0486618,2055.5,2054.4,1.68137954]
[1773149445360,2.36727871,2055.3,2054.3,1.21803685]
[1773149445603,2.36727871,2055.3,2054.3,0.0011]
[1773149445604,1.21660421,2054.9,2054.3,0.0011]
[1773149445892,1.21660421,2054.9,2054.3,0.04977838]
[1773149446100,1.21660421,2054.9,2054.3,0.0011]
[1773149446101,1.70569774,2054.9,2054.3,0.0011]
[1773149446253,1.70569774,2054.9,2054.1,3.054652]
[1773149446760,1.70569774,2054.9,2054.1,4.2717286]
[1773149446998,1.70569774,2054.9,2054.1,3.054652]
[1773149447200,1.70569774,2054.9,2054.7,0.0011]
[1773149447498,1.70569774,2054.9,2054.1,3.054652]
[1773149447704,1.70569774,2054.9,2054.0,1.21819962]
[1773149447900,2.85637224,2054.7,2054.0,0.0011]
[1773149448114,0.48909353,2054.6,2054.0,0.0011]
[1773149448387,0.48909353,2054.6,2053.8,0.0011]
[1773149448388,2.36727871,2054.4,2053.8,0.0011]
[1773149448559,2.36727871,2054.4,2053.8,1.21833416]
[1773149448760,2.36727871,2054.4,2053.8,0.0011]
[1773149449071,0.48909353,2054.6,2053.8,0.0011]
[1773149449386,2.85637224,2054.4,2053.8,0.0011]
[1773149449587,2.85637224,2054.4,2053.2,4.87021536]
[1773149449588,1.21713729,2054.0,2053.2,4.87021536]
[1773149449756,1.21713729,2054.0,2053.3,0.04870208]
[1773149449974,2.36727871,2053.9,2052.7,0.50113645]
[1773149450318,0.48909353,2053.7,2052.3,0.50113645]
[1773149450522,0.48909353,2053.7,2052.5,0.50113645]
[1773149450818,0.48909353,2053.7,2052.6,0.54985514]
[1773149451016,0.48909353,2053.7,2052.6,0.50113645]
[1773149451303,0.48909353,2053.7,2052.4,4.8722482]
[1773149451607,0.48909353,2053.7,2052.5,0.54985752]
[1773149451816,0.48909353,2054.1,2052.7,0.50113645]
[1773149452105,1.91265615,2054.3,2053.0,0.50113645]
[1773149452106,3.12963108,2054.3,2053.0,0.50113645]
[1773149452311,3.61872461,2054.3,2053.1,1.486]
[1773149452499,3.61872461,2054.3,2052.7,1.486]
[1773149452500,0.48909353,2054.2,2052.7,1.486]
[1773149452708,3.12963108,2054.3,2052.7,1.486]
[1773149452709,2.85637224,2053.9,2052.7,1.486]
[1773149453091,0.48909353,2053.9,2052.8,0.04871395]
[1773149453411,0.48909353,2053.9,2052.7,1.98713645]
[1773149453412,2.85637224,2053.8,2052.7,0.50113645]
[1773149454276,1.21731508,2053.7,2052.8,1.21784879]
[1773149455320,1.21729418,2053.8,2052.8,1.71898524]
[1773149455614,1.21713729,2054.0,2052.9,0.04871157]
[1773149455785,1.21713729,2054.0,2052.8,1.71898524]
[1773149455977,2.36727871,2053.8,2052.8,1.71898524]
[1773149456310,1.70640861,2053.7,2052.8,1.21784879]
[1773149456611,1.70640861,2053.7,2052.7,1.21786494]
[1773149457011,1.70640861,2053.7,2052.8,0.04871395]
[1773149457383,0.48909353,2053.7,2052.8,0.04871395]
[1773149457706,1.21726254,2053.8,2052.8,0.04871395]
[1773149457883,1.21726254,2053.8,2052.8,0.5498504]
[1773149458292,2.36727871,2053.8,2052.9,1.21778946]
[1773149458618,0.48909353,2053.7,2052.8,1.21780153]
[1773149459110,4.86855669,2054.0,2052.9,0.50113645]
[1773149460028,1.91265615,2054.3,2053.2,2.36727871]
[1773149460178,1.91265615,2054.3,2053.4,0.50113645]
[1773149460381,1.91265615,2054.3,2053.5,1.71857009]
[1773149460683,0.0486618,2054.2,2053.5,1.71857009]
[1773149460880,1.91265615,2054.3,2053.6,0.50113645]
[1773149461082,0.49009353,2054.7,2053.9,0.50113645]
[1773149461083,0.001,2054.7,2053.9,0.50113645]
[1773149461436,0.0486618,2055.2,2054.2,0.50113645]
[1773149461714,1.21623046,2055.6,2054.4,0.50113645]
[1773149462011,2.03116868,2055.8,2054.4,0.50113645]
[1773149462197,1.54204739,2055.8,2054.9,2.86841516]
[1773149462551,1.54204739,2055.8,2054.4,4.73455742]
[1773149462553,1.75389437,2055.7,2054.5,0.50113645]
[1773149462706,0.48909353,2055.5,2054.5,1.21678246]
[1773149462907,0.0486618,2055.4,2054.5,1.21678246]
[1773149463127,1.21613904,2055.7,2054.5,1.21678246]
[1773149463436,0.53775533,2055.6,2054.5,1.21678246]
[1773149463636,2.36727871,2055.4,2054.3,4.86771321]
[1773149463818,0.48909353,2055.6,2054.3,4.86771321]
[1773149464017,0.48909353,2055.6,2054.3,5.34036778]
[1773149464314,0.0486618,2055.5,2054.3,5.34036778]
[1773149464516,2.36727871,2055.4,2054.3,5.34036778]
[1773149464835,2.36727871,2055.1,2054.2,1.21699208]
[1773149465014,0.0486618,2055.0,2054.2,1.21699208]
[1773149465219,0.47067877,2055.4,2054.2,1.68964665]
[1773149465536,2.88661928,2055.3,2054.2,1.68964665]
[1773149465841,2.36727871,2055.0,2053.9,1.21639655]
[1773149466022,0.0486618,2054.9,2053.9,1.21639655]
[1773149466339,0.47067877,2055.2,2054.0,2.36727871]
[1773149466503,1.21624908,2055.5,2054.3,0.47265457]
[1773149466708,1.21624908,2055.5,2054.2,1.21701879]
[1773149466709,0.51934057,2055.4,2054.2,1.21701879]
[1773149466935,2.36727871,2055.0,2054.2,1.21701879]
[1773149467136,0.0486618,2054.9,2054.2,1.21701879]
[1773149467337,0.0486618,2054.9,2053.9,5.34141949]
[1773149467338,2.36727871,2054.7,2053.9,1.21713729]
[1773149467522,0.0486618,2054.6,2053.9,1.21713729]
[1773149467719,0.51934057,2054.6,2053.5,1.69003771]
[1773149467923,2.36727871,2054.4,2053.2,4.87025347]
[1773149468110,2.36727871,2054.4,2053.3,1.488]
[1773149468111,0.0486618,2054.3,2053.3,1.488]
[1773149468311,0.51934057,2054.3,2053.2,1.21761153]
[1773149468617,0.51934057,2054.3,2053.0,0.0011]
[1773149468618,2.36727871,2053.8,2053.0,0.0011]
[1773149468811,2.36727871,2053.8,2053.0,1.21882337]
[1773149469127,2.36727871,2053.8,2053.0,1.21882171]
[1773149469329,2.36727871,2053.8,2053.0,0.0011]
[1773149469534,1.68781606,2054.0,2053.0,1.2675289]
[1773149469843,0.47067877,2054.0,2053.0,1.2188197]
[1773149470139,2.37281437,2053.8,2053.0,1.2188197]
[1773149470549,2.37281437,2053.8,2053.2,1.21761153]
[1773149470550,1.21731045,2053.8,2053.2,1.21761153]
[1773149470840,1.21714996,2054.0,2053.2,1.21761153]
[1773149471026,1.21714996,2054.0,2053.0,0.0011]
[1773149471246,2.37281437,2053.9,2053.0,1.21878413]
[1773149471412,1.68782873,2054.0,2053.0,0.0011]
[1773149471613,2.37281437,2053.8,2053.0,1.218818]
[1773149472232,0.47067877,2053.9,2053.0,1.218818]
[1773149472421,7.28979066,2054.1,2053.0,1.69147257]
[1773149472422,1.26575702,2054.1,2053.0,1.69147257]
[1773149472621,1.26575702,2054.1,2053.2,0.0011]
[1773149472824,1.21684108,2054.5,2053.3,0.47265457]
[1773149473034,4.74562874,2055.0,2053.6,0.47265457]
[1773149473035,2.84349314,2055.0,2053.6,0.47265457]
[1773149473222,0.0486618,2054.9,2053.9,0.47265457]
[1773149473554,0.0486618,2054.9,2053.4,1.96465457]
[1773149473555,2.84349314,2054.8,2053.4,1.96465457]
[1773149473856,0.47067877,2054.3,2053.5,0.04869734]
[1773149474150,0.47067877,2054.0,2053.2,0.0011]
[1773149474535,1.21719655,2053.9,2053.2,0.0011]
[1773149474858,2.84189651,2053.8,2053.2,0.0011]
[1773149475016,0.47067877,2053.7,2053.2,0.0011]
[1773149475417,0.47067877,2054.1,2053.2,0.0011]
[1773149475617,1.2171824,2054.0,2053.2,0.0011]
[1773149476147,0.47067877,2053.9,2053.2,0.0011]
[1773149476717,0.47067877,2053.9,2053.0,0.0011]
[1773149476718,2.84189651,2053.7,2053.0,0.0011]
[1773149477121,2.84189651,2053.4,2052.8,0.0011]
[1773149477543,0.47067877,2053.3,2052.8,0.0011]
[1773149477743,1.711,2053.7,2052.5,0.0011]
[1773149477744,2.37121774,2053.1,2052.5,0.0011]
[1773149477945,0.47067877,2053.0,2052.5,0.0011]
[1773149478148,2.84189651,2052.8,2051.7,1.21847328]
[1773149478486,0.47067877,2052.7,2051.7,1.21847328]
[1773149478673,0.47067877,2052.1,2050.8,1.69169104]
[1773149478956,1.21814549,2052.3,2050.9,0.52141365]
[1773149479152,1.21734549,2052.3,2050.9,0.52141365]
[1773149479377,0.47067877,2053.1,2051.4,0.47265457]
[1773149479582,2.37121774,2052.8,2051.5,0.04874482]
[1773149479723,2.84189651,2053.1,2051.2,0.47265457]
[1773149480734,1.68839463,2053.1,2051.5,0.47265457]
[1773149481049,0.47067877,2053.0,2051.5,0.47265457]
[1773149481348,0.47067877,2053.0,2051.5,1.96965457]
[1773149481548,0.47067877,2053.0,2051.6,0.52139701]
[1773149481747,1.68819082,2053.4,2051.9,2.37121774]
[1773149481952,1.68819082,2053.4,2051.6,0.47265457]
[1773149481953,0.51934057,2053.3,2051.6,0.47265457]
[1773149482255,0.51934057,2053.3,2051.7,0.47265457]
[1773149482434,0.47067877,2053.3,2051.7,0.50418618]
[1773149482633,0.51934057,2053.2,2051.8,0.47265457]
[1773149482948,0.47067877,2053.0,2051.9,1.21838296]
[1773149483146,0.47067877,2053.0,2052.0,0.04873294]
[1773149483354,1.26633263,2053.1,2052.0,0.04873294]
[1773149483529,1.26633263,2053.1,2051.9,1.21838296]
[1773149483731,4.10822914,2053.1,2051.9,1.21838296]
[1773149484568,0.47067877,2053.0,2051.9,1.21838296]
[1773149484859,1.21778946,2052.9,2052.0,0.47265457]
[1773149485151,1.26645126,2052.9,2052.0,0.47265457]
[1773149485365,1.26645126,2052.9,2051.9,1.21838296]
[1773149486572,0.0486618,2052.9,2052.0,0.47265457]
[1773149486738,0.001,2053.1,2052.2,0.47265457]
[1773149487063,0.001,2053.1,2052.4,0.47265457]
[1773149487767,0.91960386,2053.5,2052.5,0.52137564]
[1773149488571,0.91960386,2053.5,2052.8,0.47265457]
[1773149488850,0.87081299,2053.5,2053.0,0.47265457]
[1773149490865,0.87081299,2053.5,2053.1,1.21767083]
[1773149491426,2.08826147,2053.5,2052.4,0.47265457]
[1773149491622,0.0486618,2053.4,2052.4,0.47265457]
[1773149491827,2.08826147,2053.5,2052.5,0.04872107]
[1773149492126,2.08826147,2053.5,2052.5,0.52137564]
[1773149492127,0.0486618,2053.4,2052.5,0.52137564]
[1773149492555,0.0486618,2053.4,2052.5,0.47265457]
[1773149492762,0.0486618,2053.4,2052.5,0.52137564]
[1773149493056,1.26617108,2053.4,2052.6,1.69062202]
[1773149493255,0.87081299,2053.5,2052.7,0.52137089]
[1773149493564,0.0486618,2053.4,2052.3,0.47265457]
[1773149493775,2.84035971,2053.2,2052.0,1.96840098]
[1773149494059,2.37121774,2052.9,2051.7,1.68995654]
[1773149494256,0.0486618,2052.8,2051.7,1.68995654]
[1773149494634,0.0486618,2052.8,2051.8,0.04873769]
[1773149495152,5.3393279,2053.4,2052.0,0.47040098]
[1773149495341,0.1141978,2053.3,2052.1,0.47040098]
[1773149495525,2.84035971,2053.2,2051.9,1.21838296]
[1773149495731,2.37121774,2052.9,2051.8,1.68880073]
[1773149496025,0.0486618,2052.8,2051.8,0.47040098]
[1773149496231,0.51780377,2052.8,2051.7,1.26830549]
[1773149496530,0.46914197,2052.8,2051.7,1.26830549]
[1773149497153,1.21790812,2052.7,2051.7,1.73870647]
[1773149497434,2.37121774,2052.2,2051.5,0.0011]
[1773149497640,0.46914197,2052.1,2051.2,0.0011]
[1773149497857,5.38913734,2051.9,2050.6,1.21915536]
[1773149498358,2.54877763,2051.9,2050.7,0.47040098]
[1773149498760,0.46914197,2051.8,2050.7,0.47040098]
[1773149498953,0.46914197,2051.7,2050.6,1.21915536]
[1773149499150,1.21856112,2051.6,2050.6,0.47040098]
[1773149499740,3.76719133,2051.9,2050.7,0.51916481]
[1773149500049,3.76719133,2051.9,2050.7,0.47040098]
[1773149500253,2.84035971,2051.8,2050.7,0.47040098]
[1773149500454,0.46914197,2051.7,2050.4,4.87695544]
[1773149500775,0.46914197,2051.7,2050.5,0.04876859]
[1773149501285,1.21856112,2051.6,2050.5,0.04876859]
[1773149501480,1.21856112,2051.6,2050.6,0.47040098]
[1773149501884,2.54877763,2051.9,2050.6,0.47040098]
[1773149502066,1.21839503,2051.9,2050.8,0.47040098]
[1773149502271,0.46914197,2051.7,2050.4,2.70827428]
[1773149502462,1.21839503,2051.9,2050.5,0.51916957]
[1773149503055,7.71389155,2052.1,2050.5,0.51916957]
[1773149503056,1.21807082,2052.5,2050.9,0.47040098]
[1773149503300,0.0486618,2052.4,2051.1,0.47040098]
[1773149504556,0.0486618,2052.4,2051.3,0.47040098]
[1773149504788,0.46914197,2052.1,2050.9,0.47040098]
[1773149504960,0.51780377,2052.1,2050.9,1.68932067]
[1773149505469,1.21832358,2052.0,2051.0,0.48932881]
[1773149505857,0.0486618,2051.9,2051.0,0.47040098]
[1773149506057,1.26697279,2052.1,2051.0,0.47040098]
[1773149506691,1.68722811,2052.5,2051.2,0.47961441]
[1773149506863,4.92114423,2052.4,2051.2,0.47961441]
[1773149507061,4.92114423,2052.4,2051.3,0.0413414]
[1773149507371,5.37960595,2052.4,2051.3,1.21873933]
[1773149508263,2.37121774,2052.0,2050.9,1.21897703]
[1773149508462,0.0486618,2051.9,2050.8,1.69860638]
[1773149508697,0.0486618,2051.9,2050.8,1.69864386]
[1773149508862,0.50712352,2051.9,2050.6,4.87648479]
[1773149509061,0.50712352,2051.9,2050.5,4.87669877]
[1773149509463,2.37121774,2051.7,2050.5,4.87669877]
[1773149509663,0.0486618,2051.6,2050.5,4.87669877]
[1773149509974,0.50712352,2051.6,2050.4,1.69884513]
[1773149510182,0.50712352,2051.6,2050.4,1.21923072]
[1773149510183,2.82967946,2051.4,2050.4,1.21923072]
[1773149510493,2.82967946,2051.1,2050.0,1.69908875]
[1773149510693,2.82967946,2051.1,2050.1,0.0487781]
[1773149510694,0.45846172,2051.0,2050.1,0.0487781]
[1773149510996,0.45846172,2051.0,2049.8,4.87850481]
[1773149511197,2.37121774,2050.1,2049.0,4.8801913]
[1773149511398,2.37121774,2049.8,2048.9,1.31323781]
[1773149511596,2.37121774,2049.8,2048.9,2.05378775]
[1773149511767,1.21951219,2050.0,2048.9,2.05378775]
[1773149512176,2.37121774,2049.8,2048.9,2.05378666]
[1773149512396,2.54791545,2049.9,2048.9,2.05378666]
[1773149512595,1.21949874,2050.1,2049.0,0.47961441]
[1773149512767,0.065536,2050.3,2049.0,0.47961441]
[1773149512768,1.21936561,2050.3,2049.0,0.47961441]
[1773149512968,1.21931181,2050.4,2049.2,0.47961441]
[1773149513168,1.21931181,2050.4,2049.4,0.47961441]
[1773149513588,1.21931181,2050.4,2049.4,1.69944229]
[1773149513801,1.21931181,2050.4,2049.3,1.21988684]
[1773149513960,1.618549,2050.4,2049.1,1.22004782]
[1773149514590,1.618549,2050.4,2049.2,0.04879953]
[1773149514888,1.618549,2050.4,2049.0,5.36002195]
[1773149514889,1.21921482,2050.6,2049.0,1.53649148]
[1773149515119,2.37121774,2050.0,2049.0,1.53649148]
[1773149515485,2.37121774,2049.7,2049.0,1.38491104]
[1773149515686,1.21975019,2049.6,2049.0,1.38491104]
[1773149516116,1.21939322,2050.2,2049.1,1.46070126]
[1773149516688,2.37121774,2050.0,2049.1,1.46070126]
[1773149517592,15.74541733,2052.3,2050.9,0.82924338]
[1773149517925,3.48421127,2053.6,2052.3,1.27306173]
[1773149518131,15.74541733,2053.2,2052.5,0.47961441]
[1773149518283,15.79407913,2053.1,2052.3,2.72906173]
[1773149518485,15.74541733,2053.2,2052.3,2.72906173]
[1773149518683,0.0486618,2053.1,2052.3,1.27306173]
[1773149519316,15.74541733,2053.0,2052.3,1.27306173]
[1773149519537,0.0486618,2052.9,2052.3,1.27306173]
[1773149519831,15.74541733,2052.9,2052.3,1.27306173]
[1773149520286,15.74541733,2052.8,2052.3,1.27306173]
[1773149520488,0.0486618,2052.7,2052.3,1.27306173]
[1773149520783,0.83779263,2052.3,2051.5,0.47961441]
[1773149521104,0.0486618,2052.2,2051.5,0.47881441]
[1773149521320,14.4723556,2052.6,2051.0,3.19970189]
[1773149521321,2.37121774,2052.4,2051.0,3.19970189]
[1773149521487,5.1776618,2052.3,2051.0,4.41861079]
[1773149521821,1.21820485,2052.2,2051.0,5.87261079]
[1773149522024,0.0486618,2052.1,2051.0,4.41861079]
[1773149523030,14.4723556,2052.0,2051.1,0.47961441]
[1773149523225,0.0486618,2051.9,2051.1,0.47961441]
[1773149523389,14.5210174,2052.2,2051.1,0.47961441]
[1773149523728,0.0486618,2052.1,2051.1,0.47961441]
[1773149524041,0.0486618,2052.1,2051.2,2.89862858]
[1773149524042,14.5210174,2052.1,2051.2,2.89862858]
[1773149524207,14.4723556,2052.1,2051.3,1.465]
[1773149524526,0.0486618,2052.0,2051.3,1.465]
[1773149524685,0.0486618,2052.0,2051.2,2.89972858]
[1773149524888,14.4723556,2051.9,2051.3,1.468]
[1773149525100,14.4723556,2051.9,2051.2,1.68092983]
[1773149525305,14.4723556,2051.8,2051.2,0.0011]
[1773149525526,1.21832358,2052.0,2051.2,0.0011]
[1773149525733,0.0486618,2051.9,2051.2,0.0011]
[1773149525914,1.21844234,2051.8,2051.2,0.0011]
[1773149526112,0.0486618,2051.7,2051.2,0.0011]
[1773149526619,14.5210174,2051.7,2051.2,0.0011]
[1773149526918,14.4723556,2051.6,2051.2,0.0011]
[1773149527214,0.0486618,2051.5,2051.2,0.0011]
[1773149527415,14.5210174,2051.8,2051.2,0.0011]
[1773149527612,0.0486618,2051.7,2051.2,0.0011]
[1773149528114,14.4723556,2051.6,2051.2,0.0011]
[1773149528319,0.001,2052.2,2051.2,1.68092983]
[1773149528517,14.4733556,2052.2,2051.4,1.67982983]
[1773149528716,14.5210174,2052.1,2051.4,1.67982983]
[1773149528893,14.4723556,2052.1,2051.2,1.4801]
[1773149529093,14.5210174,2052.0,2051.2,0.0011]
[1773149529322,14.4723556,2052.1,2051.2,0.0011]
[1773149529515,0.0486618,2052.0,2051.2,0.0011]
[1773149529920,0.001,2052.2,2051.3,2.88133775]
[1773149530088,0.001,2052.2,2051.3,1.21873933]
[1773149530295,13.73055575,2052.1,2051.3,1.21873933]
[1773149530494,0.0486618,2052.0,2051.3,1.21873933]
[1773149531006,13.73055575,2051.9,2051.3,1.21873933]
[1773149531205,0.0486618,2051.8,2051.3,1.21873933]
[1773149531404,0.0486618,2051.8,2051.4,0.04874719]
[1773149531604,0.001,2052.2,2051.4,0.04874719]
[1773149531921,13.73055575,2052.1,2051.4,0.03937791]
[1773149532131,13.73055575,2052.1,2051.2,4.87605734]
[1773149532296,10.30855575,2052.0,2051.2,4.87605734]
[1773149532503,10.30855575,2052.1,2051.3,1.53474957]
[1773149533002,5.17455576,2052.0,2051.3,1.53474957]
[1773149533203,5.17455576,2052.1,2051.3,1.486]
[1773149533606,5.17455576,2052.0,2051.2,1.21989875]
[1773149533894,0.0486618,2051.9,2051.3,0.04874957]
[1773149534209,0.0486618,2052.0,2051.4,1.21867992]
[1773149534416,5.22321756,2052.0,2051.3,1.26744273]